bitfinex/quotes_ETHUSD_20240820
["timestamp","ask_amount","ask_price","bid_price","bid_amount"]
[1724162348128,7.54166,2652.0,2651.4,3.77158]
[1724162348294,7.54166,2652.0,2651.4,5.96635899]
[1724162348501,3.7709,2651.9,2651.4,2.19477899]
[1724162348808,3.77134,2651.6,2651.2,14.40458994]
[1724162349708,3.77152,2651.5,2651.2,14.40458994]
[1724162349894,3.77163,2651.4,2650.8,2.4479]
[1724162350091,3.77197,2651.2,2650.4,2.4451]
[1724162350475,6.26657,2651.0,2650.1,16.70498994]
[1724162350641,6.26657,2651.0,2650.2,1.67049899]
[1724162350936,10.03884,2651.0,2650.2,1.67049899]
[1724162351105,3.77233,2650.9,2650.2,1.67049899]
[1724162351311,7.54474,2650.9,2650.2,1.67049899]
[1724162351537,3.77233,2650.9,2650.2,1.67049899]
[1724162351733,3.7726,2650.7,2650.3,1.83754889]
[1724162352232,3.7726,2650.7,2650.1,2.3004]
[1724162352832,7.54529,2650.7,2650.1,2.3004]
[1724162353138,3.7726,2650.7,2650.1,2.3004]
[1724162353345,3.77273,2650.6,2650.1,2.3004]
[1724162353548,3.77289,2650.5,2650.1,2.3004]
[1724162353715,3.77289,2650.5,2650.1,2.53044]
[1724162354451,3.77304,2650.4,2650.1,2.53044]
[1724162355005,7.54615,2650.4,2650.1,2.53044]
[1724162355523,3.77329,2650.3,2650.1,2.53044]
[1724162356545,3.77366,2650.0,2649.8,2.4917]
[1724162356724,7.54734,2650.0,2649.9,14.40458994]
[1724162357046,3.77291,2650.5,2649.5,7.27]
[1724162357047,3.774,2649.8,2649.6,14.40458994]
[1724162357352,3.774,2649.8,2648.7,1.18069937]
[1724162357353,7.54858,2649.5,2649.4,19.54]
[1724162358010,7.54886,2649.4,2649.3,19.54]
[1724162358210,7.54886,2649.4,2649.0,19.54]
[1724162358211,3.77486,2649.1,2649.0,19.54]
[1724162358449,7.54972,2649.1,2649.0,19.54]
[1724162358944,3.77486,2649.1,2649.0,19.54]
[1724162360046,3.77474,2649.2,2649.0,19.54]
[1724162360427,3.77479,2649.2,2649.0,19.54]
[1724162361245,3.77475,2649.2,2649.0,19.54]
[1724162362458,3.77452,2649.4,2649.0,19.54]
[1724162362614,3.77452,2649.4,2649.0,22.46636]
[1724162363668,3.77429,2649.6,2649.1,19.54]
[1724162363958,3.77452,2649.4,2649.1,19.54]
[1724162366728,3.77395,2649.8,2649.2,6.12455]
[1724162366981,3.77395,2649.8,2649.3,2.566455]
[1724162367183,3.77409,2649.7,2649.3,2.566455]
[1724162368022,3.77418,2649.6,2649.2,2.3499]
[1724162368463,3.77444,2649.4,2649.1,19.54]
[1724162369024,3.77394,2649.8,2649.3,2.2741]
[1724162369295,3.77368,2650.0,2649.4,19.54]
[1724162369484,3.77368,2650.0,2649.5,22.098858]
[1724162369795,3.77368,2650.0,2649.5,19.54]
[1724162370000,5.757,2650.2,2649.5,19.54]
[1724162370149,3.77404,2649.7,2649.5,19.54]
[1724162370585,3.77403,2649.7,2649.5,19.54]
[1724162371786,3.77403,2649.7,2649.5,21.494]
[1724162372253,3.77403,2649.7,2649.5,19.54]
[1724162374856,3.77379,2649.9,2649.5,19.54]
[1724162375070,3.77391,2649.8,2649.5,19.54]
[1724162375386,3.77402,2649.7,2649.5,19.54]
[1724162375910,3.77362,2650.0,2649.5,21.8579]
[1724162376084,3.77353,2650.1,2649.6,2.63869622]
[1724162377102,3.77353,2650.1,2649.6,2.563225]
[1724162379357,7.54706,2650.1,2649.6,2.563225]
[1724162379567,3.77353,2650.1,2649.6,2.563225]
[1724162379807,3.77353,2650.1,2649.7,2.8195325]
[1724162381211,3.7736,2650.0,2649.7,2.8195325]
[1724162381526,3.77353,2650.1,2649.7,2.8195325]
[1724162383133,3.7733,2650.2,2649.7,2.8195325]
[1724162383316,3.7733,2650.2,2649.6,3.77408]
[1724162383479,3.77347,2650.1,2649.6,3.77408]
[1724162384726,3.77332,2650.2,2649.6,3.77408]
[1724162385063,3.77311,2650.4,2649.5,2.3179]
[1724162385265,3.77311,2650.4,2649.8,7.54754]
[1724162385561,3.77311,2650.4,2649.8,3.77374]
[1724162385802,9.52997,2650.5,2649.9,3.77372]
[1724162385961,3.77313,2650.4,2649.8,3.77374]
[1724162386358,3.77318,2650.3,2649.8,3.77374]
[1724162386681,3.77251,2650.8,2650.2,3.77322]
[1724162386882,3.77259,2650.7,2650.2,3.77322]
[1724162387492,3.77259,2650.7,2650.1,3.77343]
[1724162387666,3.77259,2650.7,2650.0,3.77358]
[1724162387667,3.7729,2650.5,2650.2,0.754701]
[1724162387928,3.77296,2650.5,2649.9,6.16722]
[1724162388071,3.77296,2650.5,2650.0,3.77357]
[1724162388559,3.77304,2650.4,2649.9,2.3936]
[1724162388722,3.77304,2650.4,2649.9,5.3936]
[1724162389071,3.77304,2650.4,2649.9,2.3936]
[1724162389072,3.77317,2650.3,2649.9,2.3936]
[1724162389614,3.77337,2650.2,2649.6,10.22832]
[1724162389864,3.77337,2650.2,2649.6,6.45424]
[1724162390416,7.5464,2650.3,2649.7,3.77394]
[1724162390649,3.77331,2650.2,2649.7,3.77394]
[1724162392591,3.77352,2650.1,2649.5,23.31418]
[1724162392875,3.77352,2650.1,2649.5,29.655858]
[1724162393199,3.7736,2650.0,2649.5,25.881648]
[1724162393728,7.54727,2650.0,2649.5,25.881648]
[1724162393929,7.54727,2650.0,2649.5,22.107468]
[1724162394160,3.7736,2650.0,2649.5,23.31428]
[1724162395345,3.7736,2650.0,2649.5,19.54]
[1724162395541,3.77387,2649.8,2649.5,19.54]
[1724162395787,7.54782,2649.8,2649.5,19.54]
[1724162395982,3.77405,2649.7,2649.5,19.54]
[1724162396228,3.77405,2649.7,2649.4,19.54]
[1724162397066,3.77418,2649.6,2649.4,19.54]
[1724162397301,3.77418,2649.6,2649.3,19.54]
[1724162397885,7.54819,2649.7,2649.3,19.54]
[1724162398120,7.54813,2649.7,2649.3,19.54]
[1724162398689,3.77405,2649.7,2649.3,19.54]
[1724162399375,9.53082,2649.9,2649.3,19.54]
[1724162399376,3.77387,2649.8,2649.3,23.31458]
[1724162399592,3.77387,2649.8,2649.3,26.750517]
[1724162400303,3.77387,2649.8,2649.4,19.54]
[1724162400725,3.77402,2649.7,2649.4,19.54]
[1724162401233,3.77416,2649.6,2649.4,19.54]
[1724162401434,7.54789,2649.8,2649.4,19.54]
[1724162401645,3.77405,2649.7,2649.4,19.54]
[1724162402232,3.77402,2649.7,2649.4,19.54]
[1724162402584,3.77377,2649.9,2649.4,19.54]
[1724162402793,3.77377,2649.9,2649.4,23.31441]
[1724162403242,3.77388,2649.8,2649.4,19.54]
[1724162403745,3.77365,2650.0,2649.5,2.4319]
[1724162403890,9.5304,2650.2,2649.6,3.77404]
[1724162404087,3.77346,2650.1,2649.7,19.54]
[1724162404707,3.77372,2649.9,2649.7,19.54]
[1724162405007,3.77359,2650.0,2649.7,19.54]
[1724162405210,3.77346,2650.1,2649.7,19.54]
[1724162405993,3.77346,2650.1,2649.7,22.492024]
[1724162406195,8.2554,2650.5,2649.7,26.266024]
[1724162406453,3.77325,2650.3,2649.8,3.77386]
[1724162407039,3.77308,2650.4,2649.9,2.3703]
[1724162407040,3.77305,2650.4,2649.9,2.3703]
[1724162407256,2.4703,2650.9,2649.9,2.3703]
[1724162407257,3.77258,2650.7,2650.2,3.77322]
[1724162407465,3.77258,2650.7,2650.3,19.99277669]
[1724162407668,7.54529,2650.7,2650.3,19.917322]
[1724162407874,3.77258,2650.7,2650.3,19.917322]
[1724162408081,6.24975,2651.1,2650.3,19.917322]
[1724162408082,7.54602,2650.4,2650.3,19.54]
[1724162408215,13.30302,2650.4,2650.3,19.54]
[1724162409057,3.77356,2650.1,2649.7,19.54]
[1724162409264,3.77366,2650.0,2649.7,19.54]
[1724162409782,3.77339,2650.2,2649.7,22.107538]
[1724162409987,3.7735,2650.1,2649.7,22.107538]
[1724162410373,3.7736,2650.0,2649.7,22.107538]
[1724162410547,3.77378,2649.9,2649.7,22.107538]
[1724162410750,3.7736,2650.0,2649.7,22.107538]
[1724162410972,3.77337,2650.2,2649.8,1.25916111]
[1724162411372,3.7731,2650.4,2649.8,1.25916111]
[1724162411570,3.77294,2650.5,2650.0,3.77356]
[1724162411823,4.36410129,2650.7,2650.0,23.31356]
[1724162411955,3.7726,2650.7,2650.2,3.77329]
[1724162412154,3.77257,2650.8,2650.3,4.805929]
[1724162412355,3.77295,2650.5,2650.0,2.4746]
[1724162412657,3.77301,2650.4,2650.0,2.4746]
[1724162413107,3.77283,2650.6,2650.0,2.4746]
[1724162413303,7.66647628,2651.0,2650.0,2.4746]
[1724162413555,3.77294,2650.5,2650.0,2.4746]
[1724162413790,3.77294,2650.5,2650.1,2.57882]
[1724162414173,3.77302,2650.4,2650.1,2.57882]
[1724162414505,7.54611,2650.4,2650.1,2.57882]
[1724162414803,7.54613,2650.4,2649.9,19.54]
[1724162415005,3.77344,2650.1,2649.9,19.54]
[1724162415216,5.757,2650.4,2649.5,2.4062]
[1724162415217,3.77366,2650.0,2649.5,2.4062]
[1724162415793,3.77393,2649.8,2649.2,6.20704]
[1724162416003,3.77393,2649.8,2649.2,5.384595]
[1724162416004,3.77415,2649.6,2649.2,5.384595]
[1724162416160,3.77401,2649.7,2649.1,7.54965]
[1724162416392,3.77421,2649.6,2649.0,3.77499]
[1724162416561,3.77403,2649.7,2649.0,3.77499]
[1724162416562,3.77431,2649.5,2649.0,3.77499]
[1724162417230,3.77403,2649.7,2649.1,3.77486]
[1724162417435,3.7738,2649.9,2649.3,3.77453]
[1724162417719,3.77351,2650.1,2649.5,3.77421]
[1724162417877,3.77323,2650.3,2649.8,3.77379]
[1724162418215,3.77273,2650.6,2649.9,2.3141]
[1724162418477,3.77273,2650.6,2650.0,3.77351]
[1724162418619,7.54555,2650.6,2650.1,0.608761]
[1724162419265,3.77287,2650.5,2650.1,0.608761]
[1724162419726,3.77301,2650.4,2650.1,0.608761]
[1724162420021,3.77318,2650.3,2649.8,19.54]
[1724162420139,3.77301,2650.4,2649.8,19.54]
[1724162420445,3.77301,2650.4,2649.8,23.31383]
[1724162420638,3.77301,2650.4,2649.9,2.567353]
[1724162422306,3.7729,2650.5,2649.9,2.567353]
[1724162422467,3.7729,2650.5,2649.9,6.340983]
[1724162422799,3.7729,2650.5,2649.9,2.567353]
[1724162423001,3.7729,2650.5,2650.0,22.5054923]
[1724162423531,8.1058,2650.7,2650.0,22.5054923]
[1724162423815,3.7732,2650.3,2650.0,19.54]
[1724162423991,3.77344,2650.1,2650.0,19.54]
[1724162424859,3.7734,2650.2,2650.0,19.54]
[1724162425275,3.7734,2650.2,2650.0,21.494]
[1724162426076,7.5468,2650.2,2650.0,21.494]
[1724162426402,3.77344,2650.1,2650.0,19.54]
[1724162426574,7.54683,2650.2,2650.0,19.54]
[1724162426770,7.54679,2650.2,2650.0,19.54]
[1724162426976,3.77339,2650.2,2650.0,19.54]
[1724162427172,3.77344,2650.1,2650.0,19.54]
[1724162428903,3.77344,2650.1,2649.6,23.31413]
[1724162429092,7.54674,2650.2,2649.8,2.4671]
[1724162429296,3.77344,2650.1,2649.8,2.4671]
[1724162429463,3.77344,2650.1,2649.7,3.058413]
[1724162430068,3.77311,2650.4,2649.7,3.058413]
[1724162430268,3.77311,2650.4,2649.8,3.77386]
[1724162430501,3.77322,2650.3,2649.9,0.6832273]
[1724162431026,2.3743,2650.5,2649.9,0.6832273]
[1724162431027,3.77331,2650.2,2649.9,0.6832273]
[1724162431183,3.77331,2650.2,2649.7,3.058413]
[1724162431184,3.77344,2650.1,2649.7,3.058413]
[1724162431569,3.7738,2649.9,2649.6,19.54]
[1724162432064,2.2526,2650.0,2649.6,19.54]
[1724162432331,3.77401,2649.7,2649.6,19.54]
[1724162432483,3.77415,2649.6,2649.3,19.54]
[1724162432869,3.77415,2649.6,2649.2,19.54]
[1724162433064,3.77401,2649.7,2649.2,19.54]
[1724162433065,3.7743,2649.5,2649.2,19.54]
[1724162433268,8.0096,2650.0,2649.2,19.54]
[1724162433269,3.77448,2649.4,2649.2,19.54]
[1724162433497,3.77467,2649.3,2649.1,19.54]
[1724162433946,3.77472,2649.2,2649.1,19.54]
[1724162434301,3.77472,2649.2,2648.6,19.54]
[1724162434502,3.77472,2649.2,2648.7,19.54]
[1724162435106,7.54954,2649.2,2648.7,19.54]
[1724162435307,3.77486,2649.1,2648.7,19.54]
[1724162435547,3.77501,2649.0,2648.7,19.54]
[1724162435758,3.77529,2648.8,2648.7,19.54]
[1724162436062,3.77529,2648.8,2648.2,19.54]
[1724162436063,0.99566,2648.8,2648.2,19.54]
[1724162436274,0.99566,2648.8,2647.6,19.54]
[1724162436275,3.77615,2648.2,2647.6,19.54]
[1724162436552,2.4063,2648.6,2647.6,19.54]
[1724162436553,3.77629,2648.1,2647.6,19.54]
[1724162437319,3.77643,2648.0,2647.6,19.54]
[1724162437628,3.77602,2648.3,2647.6,19.54]
[1724162437629,6.18191,2648.6,2647.6,22.45237]
[1724162437973,9.18191,2648.6,2647.7,2.3521]
[1724162438124,9.18191,2648.6,2647.7,6.12883]
[1724162438125,3.77572,2648.5,2647.7,6.12883]
[1724162438470,5.4063,2648.6,2647.8,3.77661]
[1724162438647,3.77534,2648.8,2647.9,4.84261452]
[1724162438824,3.77534,2648.8,2648.0,23.39183048]
[1724162439254,3.77544,2648.7,2648.0,23.31631]
[1724162439580,6.09036,2648.9,2648.1,23.31622]
[1724162439887,3.7748,2649.2,2648.5,3.77566]
[1724162440022,12.00013,2649.3,2648.5,3.77566]
[1724162440343,12.00013,2649.3,2648.6,3.77554]
[1724162440546,6.24313,2649.3,2648.6,3.77554]
[1724162440737,6.24313,2649.3,2648.5,3.77566]
[1724162440934,3.77472,2649.2,2648.5,3.77566]
[1724162441138,3.77472,2649.2,2648.3,3.77597]
[1724162441139,3.77488,2649.1,2648.6,0.377566]
[1724162441333,3.77488,2649.1,2648.2,6.20434]
[1724162441831,3.77531,2648.8,2648.2,2.4282]
[1724162442037,3.7757,2648.6,2647.9,3.418744]
[1724162442241,3.77596,2648.4,2647.9,0.990544]
[1724162442557,3.77601,2648.3,2647.7,3.77682]
[1724162443042,3.77563,2648.6,2647.6,2.4734]
[1724162443249,3.77563,2648.6,2647.9,3.77644]
[1724162443551,2.4522,2649.0,2648.3,3.776]
[1724162443552,6.22728,2649.0,2648.3,3.776]
[1724162444060,6.22728,2649.0,2648.4,3.77583]
[1724162444359,6.22728,2649.0,2648.3,3.776]
[1724162444559,6.22728,2649.0,2648.3,3.77591]
[1724162444961,6.22728,2649.0,2648.3,7.55182]
[1724162445267,6.22728,2649.0,2648.4,0.755182]
[1724162445436,6.22728,2649.0,2648.3,3.7759]
[1724162445437,3.77508,2649.0,2648.3,3.7759]
[1724162445637,3.77516,2648.9,2648.3,3.7759]
[1724162446070,3.77566,2648.6,2648.1,2.3542]
[1724162446245,3.77566,2648.6,2647.9,3.77649]
[1724162446563,3.77566,2648.6,2647.8,5.2989]
[1724162446564,3.77615,2648.2,2647.8,2.2989]
[1724162446765,3.77615,2648.2,2647.7,3.77678]
[1724162446931,3.77598,2648.4,2647.7,3.77678]
[1724162447545,3.77603,2648.3,2647.7,7.55354]
[1724162447760,3.77603,2648.3,2647.8,0.755354]
[1724162448145,2.2636,2648.7,2647.8,0.755354]
[1724162448345,2.2636,2648.7,2647.7,3.77676]
[1724162448842,7.694,2648.5,2647.5,2.2989]
[1724162449060,2.4812,2648.4,2647.5,2.2989]
[1724162449459,3.77601,2648.3,2647.3,3.7773]
[1724162449641,3.77601,2648.3,2647.4,0.62123]
[1724162450428,3.77624,2648.2,2647.4,0.62123]
[1724162450634,2.4812,2648.4,2647.2,2.435]
[1724162450635,3.77636,2648.1,2647.2,2.435]
[1724162450856,2.4444,2648.0,2647.2,2.435]
[1724162451171,6.22084,2648.0,2647.2,2.435]
[1724162451473,3.77686,2647.7,2646.9,0.06572041]
[1724162451645,3.77686,2647.7,2646.8,6.15813]
[1724162451646,2.3962,2647.6,2646.8,6.15813]
[1724162452579,3.77716,2647.5,2646.8,6.15813]
[1724162452762,3.77716,2647.5,2646.8,3.77803]
[1724162453144,7.55438,2647.5,2646.6,7.55666]
[1724162453342,3.77716,2647.5,2646.6,3.7783]
[1724162453677,3.77716,2647.5,2646.7,0.60509]
[1724162453678,3.77732,2647.4,2646.7,0.60509]
[1724162453880,3.77815,2646.8,2646.0,7.55846]
[1724162454032,11.47215,2646.8,2646.0,3.77919]
[1724162454557,3.7783,2646.7,2646.0,3.77919]
[1724162454737,3.7783,2646.7,2646.1,0.377919]
[1724162455273,3.77815,2646.8,2646.1,0.377919]
[1724162455472,7.694,2647.2,2646.4,6.25291]
[1724162455473,3.77767,2647.2,2646.4,6.25291]
[1724162455671,3.77767,2647.2,2646.5,3.77856]
[1724162456014,3.77767,2647.2,2646.6,3.77842]
[1724162456184,3.77773,2647.1,2646.4,6.25285]
[1724162456481,3.77767,2647.2,2646.1,0.377919]
[1724162456482,3.77823,2646.8,2646.1,0.377919]
[1724162456639,3.77845,2646.6,2646.1,0.377919]
[1724162457770,6.22873,2646.8,2646.1,4.157039]
[1724162458084,3.77844,2646.6,2646.1,0.377919]
[1724162458246,2.3533,2646.2,2645.2,6.3216379]
[1724162458558,7.694,2645.3,2645.2,0.1259179]
[1724162458883,3.77963,2645.8,2645.2,0.1259179]
[1724162458884,3.77959,2645.8,2645.2,0.1259179]
[1724162459054,7.55873,2646.0,2645.3,3.78018]
[1724162459377,2.3533,2646.2,2645.2,3.9062379]
[1724162459378,2.3533,2646.2,2645.4,0.76864179]
[1724162459586,3.77982,2645.7,2645.2,0.1259179]
[1724162459742,3.78028,2645.4,2645.2,0.1259179]
[1724162460254,3.78025,2645.4,2645.2,0.1259179]
[1724162460583,7.694,2645.5,2645.2,0.1259179]
[1724162460584,7.56056,2645.3,2645.2,0.1259179]
[1724162461093,13.78344,2645.3,2645.2,0.1259179]
[1724162461245,10.00316,2645.3,2645.2,0.1259179]
[1724162461444,18.24716,2645.3,2645.2,0.1259179]
[1724162461762,7.56056,2645.3,2645.2,0.1259179]
[1724162462669,3.78028,2645.3,2645.2,0.1259179]
[1724162462869,7.56056,2645.3,2645.2,0.1259179]
[1724162463577,3.78028,2645.3,2645.2,0.1259179]
[1724162464135,7.56056,2645.3,2645.2,0.1259179]
[1724162464424,9.086016,2645.3,2645.2,0.1259179]
[1724162464930,12.866296,2645.3,2645.2,0.1259179]
[1724162465130,18.747596,2645.3,2645.2,0.1259179]
[1724162465419,19.14175776,2645.3,2645.2,0.1259179]
[1724162467022,22.92203776,2645.3,2645.2,0.1259179]
[1724162467218,2.3825,2645.2,2643.5,3.7828]
[1724162467434,3.78211,2644.1,2643.6,0.60481]
[1724162467635,3.78216,2644.0,2643.6,0.60481]
[1724162467929,11.47611,2644.1,2643.4,2.2653]
[1724162467930,3.78211,2644.1,2643.4,2.2653]
[1724162468238,3.78211,2644.1,2643.5,3.78283]
[1724162468445,6.78103,2644.8,2643.6,3.78266]
[1724162468446,3.78147,2644.5,2643.6,3.78266]
[1724162468610,7.56302,2644.5,2643.8,3.7824]
[1724162468798,7.56304,2644.5,2643.8,3.7824]
[1724162469002,7.56304,2644.5,2643.7,0.378266]
[1724162469003,10.694,2644.8,2643.7,0.378266]
[1724162469304,3.78186,2644.2,2643.5,3.78277]
[1724162469507,3.78201,2644.1,2643.5,3.78277]
[1724162469708,3.78186,2644.2,2643.4,6.04817]
[1724162470036,3.78134,2644.6,2643.6,3.78265]
[1724162470233,3.78134,2644.6,2643.8,3.78229]
[1724162470446,3.78147,2644.5,2643.8,3.78229]
[1724162471142,3.78158,2644.4,2643.8,3.78229]
[1724162471300,3.78186,2644.2,2643.7,0.678265]
[1724162471822,3.78186,2644.2,2643.6,3.78271]
[1724162472026,11.47563,2644.4,2643.7,3.78247]
[1724162472203,11.47563,2644.4,2643.8,3.78242]
[1724162472540,3.78131,2644.6,2644.0,3.78212]
[1724162472711,3.78111,2644.8,2644.2,3.78182]
[1724162472899,3.78111,2644.8,2644.1,0.378212]
[1724162473100,3.7818,2644.3,2643.6,6.13416]
[1724162473300,3.78164,2644.4,2643.6,6.13413]
[1724162473502,7.694,2644.7,2643.6,6.13413]
[1724162473735,11.47519,2644.7,2643.6,6.13413]
[1724162474054,7.56415,2644.1,2643.6,2.3515]
[1724162474199,7.56415,2644.1,2643.6,3.26494]
[1724162474400,3.78216,2644.0,2643.4,3.7829]
[1724162474667,3.78203,2644.1,2643.4,3.7829]
[1724162474668,3.78232,2643.9,2643.4,3.7829]
[1724162474936,3.78232,2643.9,2643.3,6.12474]
[1724162475628,7.56471,2643.9,2643.3,6.12474]
[1724162475811,3.78232,2643.9,2643.3,7.415536]
[1724162476144,3.78296,2643.5,2643.0,2.467]
[1724162476329,3.78316,2643.3,2642.7,2.2881]
[1724162476639,3.78382,2642.9,2642.2,2.2881]
[1724162476799,3.78382,2642.9,2642.2,6.0728]
[1724162477200,3.78359,2643.0,2642.2,6.0728]
[1724162477399,3.78347,2643.1,2642.5,3.78428]
[1724162477602,7.694,2643.2,2642.2,2.2881]
[1724162477862,3.78385,2642.9,2642.2,6.07274]
[1724162478201,3.78385,2642.9,2642.0,7.5699]
[1724162478202,3.78387,2642.8,2642.0,7.5699]
[1724162478401,3.784,2642.7,2642.0,3.78495]
[1724162479162,3.784,2642.7,2641.9,2.4627]
[1724162479163,7.568,2642.7,2641.9,2.4627]
[1724162479738,7.568,2642.7,2640.8,0.7]
[1724162479739,9.8875,2642.7,2641.7,3.78544]
[1724162479902,11.64565,2642.7,2641.7,3.78544]
[1724162480288,11.64565,2642.7,2641.5,2.4028]
[1724162480289,15.42965,2642.7,2641.5,2.4028]
[1724162480416,15.42965,2642.7,2641.3,2.2876]
[1724162480417,18.97965,2642.7,2641.3,2.2876]
[1724162480613,18.94865,2642.7,2641.2,6.07369]
[1724162480918,18.94865,2642.7,2641.3,3.78597]
[1724162481129,2.3549,2642.1,2641.2,2.2876]
[1724162481374,2.3549,2642.1,2640.8,3.78667]
[1724162481375,7.694,2641.9,2640.9,2.4268]
[1724162481666,3.7854,2641.8,2640.9,2.4268]
[1724162481869,3.78562,2641.6,2640.9,2.4268]
[1724162482007,3.78561,2641.6,2641.0,3.78642]
[1724162482207,3.78561,2641.6,2640.0,4.09804931]
[1724162482208,10.169,2641.5,2640.5,3.78701]
[1724162482456,13.95473,2641.5,2640.7,3.78685]
[1724162482683,10.169,2641.5,2640.8,3.78671]
[1724162482867,2.3332,2641.8,2640.6,3.78693]
[1724162483064,11.47917,2641.9,2641.3,3.78587]
[1724162483065,7.694,2641.9,2641.3,3.78587]
[1724162483415,3.78444,2642.4,2641.7,3.78541]
[1724162483635,3.78432,2642.5,2641.8,3.78516]
[1724162483925,3.78432,2642.5,2641.3,3.78594]
[1724162483926,3.78465,2642.3,2641.3,3.78594]
[1724162484140,3.78465,2642.3,2641.2,2.3564]
[1724162484141,3.78465,2642.3,2641.4,6.78585]
[1724162484275,7.694,2642.9,2641.2,2.3564]
[1724162484276,3.78542,2641.8,2641.2,2.3564]
[1724162484673,3.78542,2641.8,2641.1,3.78629]
[1724162484870,3.78576,2641.5,2640.9,6.78656]
[1724162485119,3.78569,2641.6,2640.9,3.78656]
[1724162485325,3.78574,2641.5,2640.7,6.608113]
[1724162485520,3.78569,2641.6,2640.8,0.6608113]
[1724162485521,3.78593,2641.4,2640.8,0.6608113]
[1724162485837,3.78593,2641.4,2640.7,6.608113]
[1724162485838,10.1379,2641.3,2640.7,3.78682]
[1724162485974,11.48005,2641.3,2640.5,3.78711]
[1724162486174,3.78619,2641.2,2640.6,0.378711]
[1724162486436,3.78619,2641.2,2640.6,4.165721]
[1724162486722,3.78631,2641.1,2640.6,0.378711]
[1724162486871,7.694,2641.3,2640.6,4.165711]
[1724162487068,3.78561,2641.6,2640.6,0.378711]
[1724162487272,3.78561,2641.6,2640.8,3.78663]
[1724162487501,3.78561,2641.6,2640.6,3.78698]
[1724162487729,3.78561,2641.6,2640.4,3.78724]
[1724162487730,3.78618,2641.2,2640.5,3.7871]
[1724162487872,3.78618,2641.2,2640.3,6.20552]
[1724162488072,7.694,2641.3,2640.3,6.20552]
[1724162488073,3.78654,2641.0,2640.3,6.20552]
[1724162488273,3.78654,2641.0,2640.1,6.78769]
[1724162488274,3.78668,2640.9,2640.2,3.78758]
[1724162488522,3.78704,2640.6,2640.0,0.1259179]
[1724162488729,3.78683,2640.8,2640.1,3.78773]
[1724162489082,3.78683,2640.8,2640.0,0.75911969]
[1724162489283,3.78641,2641.1,2640.3,3.78741]
[1724162489487,0.7694,2641.2,2640.0,0.75911969]
[1724162489793,3.78656,2641.0,2640.1,3.7876]
[1724162490002,3.78656,2641.0,2640.0,0.1259179]
[1724162490003,3.78712,2640.6,2640.0,0.1259179]
[1724162490582,6.18476,2640.5,2640.0,0.1259179]
[1724162490787,3.78733,2640.4,2640.0,0.1259179]
[1724162491091,6.18477,2640.5,2640.0,0.1259179]
[1724162491435,3.78773,2640.1,2640.0,0.1259179]
[1724162491945,9.98016,2640.1,2640.0,0.1259179]
[1724162492281,12.98016,2640.1,2640.0,0.1259179]
[1724162492520,16.76789,2640.1,2640.0,0.1259179]
[1724162492733,17.31789,2640.1,2640.0,0.1259179]
[1724162492941,19.819079,2640.1,2640.0,0.1259179]
[1724162493280,19.819079,2640.1,2638.1,2.4026]
[1724162493281,3.78926,2639.1,2638.4,3.79016]
[1724162493738,3.78926,2639.1,2637.5,3.79139]
[1724162493739,3.78988,2638.7,2637.9,3.79077]
[1724162493919,3.78988,2638.7,2637.7,3.7911]
[1724162493920,2.3248,2638.6,2637.7,3.7911]
[1724162494122,6.1148,2638.6,2637.7,3.79108]
[1724162494301,2.3248,2638.6,2637.5,3.7914]
[1724162494503,3.79113,2637.8,2637.3,0.1259179]
[1724162494737,3.79027,2638.4,2637.3,0.1259179]
[1724162494952,3.79027,2638.4,2637.7,3.79116]
[1724162495174,3.79027,2638.4,2637.7,0.75825]
[1724162495464,11.4845,2638.2,2637.7,0.75825]
[1724162495878,3.79106,2637.8,2637.3,0.1259179]
[1724162496029,3.79085,2638.0,2637.4,3.7916]
[1724162496356,11.48451,2638.2,2637.3,0.1259179]
[1724162496677,3.79051,2638.2,2637.5,3.79146]
[1724162496964,3.79051,2638.2,2637.5,3.79144]
[1724162496965,3.79047,2638.2,2637.5,3.79144]
[1724162497124,3.79023,2638.4,2637.5,3.79136]
[1724162497313,3.78964,2638.8,2637.6,2.3422]
[1724162497515,6.25194,2639.0,2638.3,3.79027]
[1724162497838,6.25194,2639.0,2637.8,3.79101]
[1724162497839,6.25201,2639.0,2637.8,3.79102]
[1724162498049,6.25201,2639.0,2637.7,4.02533]
[1724162498050,3.79028,2638.4,2637.7,7.81641]
[1724162498226,2.4626,2639.0,2637.3,3.9175979]
[1724162498227,3.79087,2638.0,2637.3,3.9175979]
[1724162498411,3.79114,2637.8,2637.3,0.1259179]
[1724162498934,3.79134,2637.6,2637.3,0.1259179]
[1724162499254,3.79161,2637.4,2637.3,0.1259179]
[1724162499414,3.79138,2637.6,2637.3,0.1259179]
[1724162499615,3.79148,2637.5,2637.3,0.1259179]
[1724162499816,13.65823,2637.4,2637.3,0.1259179]
[1724162500042,16.65823,2637.4,2637.3,0.1259179]
[1724162500247,3.79274,2636.7,2635.9,3.79366]
[1724162500426,3.79309,2636.4,2635.8,3.7939]
[1724162500625,3.79309,2636.4,2634.8,3.79526]
[1724162500626,2.474,2636.3,2634.8,2.3868]
[1724162500828,4.34161,2637.4,2635.6,2.3868]
[1724162500829,2.474,2636.7,2635.6,2.3868]
[1724162501188,3.79282,2636.6,2636.0,3.79355]
[1724162501441,3.79249,2636.8,2636.1,3.79347]